bitfinex/quotes_ETHUSD_20240820
["timestamp","ask_amount","ask_price","bid_price","bid_amount"]
[1724174424227,3.0,2583.8,2583.7,2.9413]
[1724174425061,6.87026,2583.8,2583.7,2.9413]
[1724174426134,10.74052,2583.8,2583.7,2.9413]
[1724174429094,6.87026,2583.8,2583.7,2.9413]
[1724174430704,10.74052,2583.8,2583.7,2.9413]
[1724174431254,6.87026,2583.8,2583.7,2.9413]
[1724174431669,10.74052,2583.8,2583.7,2.9413]
[1724174431886,6.87026,2583.8,2583.7,2.9413]
[1724174432058,10.74052,2583.8,2583.7,2.9413]
[1724174433259,6.87026,2583.8,2583.7,2.9413]
[1724174434677,10.74052,2583.8,2583.7,2.9413]
[1724174434883,3.87079,2583.5,2582.8,2.4102]
[1724174435093,3.87079,2583.5,2582.7,0.3884]
[1724174435094,3.87079,2583.5,2583.0,2.4102]
[1724174435315,0.05768516,2583.7,2583.2,2.4279]
[1724174435514,3.87101,2583.3,2583.2,2.4279]
[1724174435829,3.87099,2583.4,2583.2,2.4279]
[1724174436128,0.1952903,2583.3,2583.2,2.4279]
[1724174436572,3.1952903,2583.3,2583.2,2.4279]
[1724174437001,3.1952903,2583.3,2583.2,2.9779]
[1724174437223,3.1952903,2583.3,2583.2,0.84779]
[1724174437514,0.1952903,2583.3,2583.2,2.993]
[1724174437715,3.1952903,2583.3,2583.2,2.993]
[1724174437920,3.0,2583.4,2583.2,2.993]
[1724174438065,3.0,2583.4,2583.3,0.55]
[1724174438727,3.0,2583.4,2583.3,2.8034]
[1724174439327,3.0,2583.5,2583.3,3.08374]
[1724174440024,3.0,2583.7,2583.4,2.4374]
[1724174440168,3.0,2583.7,2583.3,0.83034]
[1724174440169,6.87045,2583.7,2583.6,2.4374]
[1724174440370,6.87045,2583.7,2583.6,2.9874]
[1724174441676,3.0,2583.7,2583.6,2.9874]
[1724174443024,3.0,2583.7,2583.6,3.28614]
[1724174444384,3.0,2583.8,2583.7,2.2708]
[1724174444591,3.0,2583.8,2583.7,2.8208]
[1724174447218,3.86929,2584.5,2583.7,2.8208]
[1724174447416,3.86904,2584.7,2583.6,2.40114277]
[1724174447417,3.86904,2584.7,2584.2,2.4195]
[1724174447666,3.86904,2584.7,2584.3,2.311]
[1724174447667,3.86903,2584.7,2584.3,2.311]
[1724174447964,3.86903,2584.7,2584.5,2.311]
[1724174448164,3.86909,2584.6,2584.5,2.311]
[1724174448474,3.86909,2584.6,2584.5,2.861]
[1724174448615,3.86903,2584.7,2584.5,2.861]
[1724174448815,3.86903,2584.7,2584.6,0.55]
[1724174450066,4.051912,2584.7,2584.6,0.55]
[1724174450634,7.051912,2584.7,2584.6,0.55]
[1724174452474,7.051912,2584.7,2584.6,2.8644]
[1724174452475,3.182882,2584.7,2584.6,2.8644]
[1724174452767,3.182882,2584.7,2584.6,3.15084]
[1724174452971,3.182882,2584.7,2584.6,2.8644]
[1724174453275,0.182882,2584.7,2584.6,2.8644]
[1724174453451,6.8688,2584.8,2584.6,2.8644]
[1724174453452,3.0,2584.8,2584.6,2.8644]
[1724174453657,4.05192816,2584.7,2584.6,2.8644]
[1724174453862,7.05192816,2584.7,2584.6,2.8644]
[1724174454355,3.18300816,2584.7,2584.6,2.8644]
[1724174454953,10.92084816,2584.7,2584.6,2.8644]
[1724174455273,10.92084816,2584.7,2584.6,2.3144]
[1724174455775,7.05192816,2584.7,2584.6,2.3144]
[1724174455975,7.05192816,2584.7,2584.6,2.8644]
[1724174457281,3.18300816,2584.7,2584.6,2.8644]
[1724174457440,0.18300816,2584.7,2584.6,2.8644]
[1724174457646,6.86883,2584.8,2584.6,2.8644]
[1724174457824,6.86883,2584.8,2584.7,0.55]
[1724174458026,10.73766,2584.8,2584.7,0.55]
[1724174459525,6.86883,2584.8,2584.7,0.55]
[1724174459886,6.86883,2584.8,2584.7,2.9457]
[1724174461523,10.73766,2584.8,2584.7,2.9457]
[1724174463557,10.73766,2584.8,2584.7,22.4157]
[1724174465799,6.86883,2584.8,2584.7,22.4157]
[1724174466099,7.05181991,2584.8,2584.7,22.4157]
[1724174466994,10.92058991,2584.8,2584.7,22.4157]
[1724174467193,14.78935991,2584.8,2584.7,19.47]
[1724174467546,10.92052991,2584.8,2584.7,19.47]
[1724174467900,14.78929991,2584.8,2584.7,19.47]
[1724174468252,10.92052991,2584.8,2584.7,19.47]
[1724174468451,14.78929991,2584.8,2584.7,19.47]
[1724174468664,10.92052991,2584.8,2584.7,19.47]
[1724174469503,3.86907,2584.6,2584.5,2.4168]
[1724174469797,3.86907,2584.6,2584.5,2.9668]
[1724174469798,3.0,2584.6,2584.5,2.9668]
[1724174470003,7.05216274,2584.6,2584.5,2.9668]
[1724174471648,10.92112839,2584.6,2584.5,2.9668]
[1724174472287,7.05205839,2584.6,2584.5,2.9668]
[1724174473125,7.05205839,2584.6,2584.5,5.21048]
[1724174473476,3.18298839,2584.6,2584.5,5.21048]
[1724174473673,0.18298839,2584.6,2584.5,5.21048]
[1724174474876,3.0,2584.8,2584.6,2.3985]
[1724174475099,3.0,2584.8,2584.7,2.9485]
[1724174475516,3.0,2584.8,2584.7,22.4185]
[1724174475691,3.0,2584.8,2584.7,23.84103361]
[1724174476634,3.0,2585.0,2584.8,2.3985]
[1724174476933,3.0,2585.0,2584.7,21.44253361]
[1724174476934,3.0,2585.0,2584.9,2.9485]
[1724174477133,6.86847,2585.0,2584.9,22.4185]
[1724174479911,10.73694,2585.0,2584.9,22.4185]
[1724174480226,10.92021374,2585.0,2584.9,21.8685]
[1724174480425,14.78868374,2585.0,2584.9,19.47]
[1724174480611,14.78868374,2585.0,2584.1,19.47]
[1724174480612,11.90874374,2585.0,2584.1,19.47]
[1724174480812,3.86999,2584.0,2583.7,7.41]
[1724174481132,4.05335211,2583.9,2583.4,7.41]
[1724174481285,4.05335211,2583.9,2583.5,2.89250952]
[1724174481624,3.0,2583.8,2583.5,2.89250952]
[1724174481824,3.86925,2584.5,2583.5,2.89250952]
[1724174481825,3.86997,2584.0,2583.5,2.89250952]
[1724174481994,3.0,2583.9,2583.7,2.3844]
[1724174482195,3.18283299,2583.9,2583.7,2.3844]
[1724174482399,3.18283299,2583.9,2583.7,2.71249095]
[1724174482596,3.87026,2583.8,2583.7,2.3844]
[1724174482810,6.87026,2583.8,2583.7,2.3844]
[1724174482984,7.05310963,2583.8,2583.7,2.3844]
[1724174483799,7.05310963,2583.8,2583.7,2.9344]
[1724174484327,7.05310963,2583.8,2583.7,22.4044]
[1724174484924,3.18284963,2583.8,2583.7,22.4044]
[1724174485328,3.18284963,2583.8,2583.7,24.73449095]
[1724174485501,0.18284963,2583.8,2583.7,24.73449095]
[1724174485707,3.18284963,2583.8,2583.7,24.69049095]
[1724174488214,0.18284963,2583.8,2583.7,24.69049095]
[1724174489502,4.05310963,2583.8,2583.7,22.3604]
[1724174489697,10.92336963,2583.8,2583.7,19.47]
[1724174490816,10.92336963,2583.8,2581.7,5.0]
[1724174490817,3.87146,2583.0,2582.9,2.4537]
[1724174491217,7.05390927,2583.0,2582.9,2.4537]
[1724174492440,10.92536927,2583.0,2582.9,2.4537]
[1724174494105,3.87206,2582.6,2582.5,2.4164]
[1724174494315,7.74412,2582.6,2582.5,2.4164]
[1724174494543,10.92628881,2582.6,2582.5,2.4164]
[1724174495267,3.18216881,2582.6,2581.8,2.4164]
[1724174495467,3.8729,2582.1,2581.9,19.47]
[1724174495818,0.1818555,2582.0,2581.9,19.47]
[1724174496618,0.1818555,2582.0,2581.9,20.02]
[1724174497229,0.1818555,2582.0,2581.9,19.47]
[1724174497457,10.9277755,2582.0,2581.9,19.47]
[1724174497721,7.9277755,2582.0,2581.9,19.47]
[1724174497922,10.9277755,2582.0,2581.9,19.47]
[1724174500298,14.8007355,2582.0,2581.9,19.47]
[1724174500430,14.8007355,2582.0,2581.9,13.66032]
[1724174500431,23.02280655,2582.0,2581.9,13.66032]
[1724174500631,23.07970475,2582.0,2581.9,9.7872]
[1724174500846,3.87431,2581.1,2581.0,2.395]
[1724174501102,6.87431,2581.1,2581.0,21.865]
[1724174501379,10.92701393,2581.1,2581.0,21.865]
[1724174502171,10.92701393,2581.1,2581.0,19.47]
[1724174502768,7.05270393,2581.1,2581.0,19.47]
[1724174502969,10.92701393,2581.1,2581.0,19.47]
[1724174503295,3.17839393,2581.1,2581.0,21.9502]
[1724174503582,7.05270393,2581.1,2581.0,21.9502]
[1724174506637,3.17839393,2581.1,2581.0,24.06210729]
[1724174506791,3.17839393,2581.1,2581.0,24.61210729]
[1724174506792,0.17839393,2581.1,2581.0,24.61210729]
[1724174507133,6.87403,2581.3,2581.0,24.61210729]
[1724174507337,6.87403,2581.3,2581.1,0.55]
[1724174507552,3.87416,2581.2,2581.1,0.55]
[1724174507703,10.74832,2581.2,2581.1,0.55]
[1724174508120,3.87431,2581.1,2581.0,2.4802]
[1724174508441,6.87431,2581.1,2581.0,3.0302]
[1724174510253,7.05241961,2581.1,2581.0,3.0302]
[1724174511847,7.05241961,2581.1,2581.0,2.7802]
[1724174512259,3.17810961,2581.1,2581.0,2.7802]
[1724174512553,3.17810961,2581.1,2581.0,3.05822]
[1724174512912,0.17810961,2581.1,2581.0,3.05822]
[1724174513112,3.0,2581.3,2581.0,3.05822]
[1724174513337,3.0,2581.3,2581.1,0.55]
[1724174513696,3.87394,2581.4,2581.1,0.55]
[1724174513837,3.0,2581.3,2581.1,0.55]
[1724174514026,3.87416,2581.2,2581.1,0.55]
[1724174514221,6.87416,2581.2,2581.1,0.55]
[1724174514422,10.74832,2581.2,2581.1,0.55]
[1724174514827,10.74832,2581.2,2581.1,2.9918]
[1724174515608,6.87416,2581.2,2581.1,2.9918]
[1724174516453,3.0,2581.2,2581.1,2.9918]
[1724174516622,3.0,2581.3,2581.1,2.9918]
[1724174517325,6.87402,2581.3,2581.1,2.9918]
[1724174517526,3.0,2581.3,2581.1,2.9918]
[1724174517944,6.87401,2581.3,2581.1,2.9918]
[1724174518241,3.0,2581.3,2581.1,2.9918]
[1724174519354,6.87404,2581.3,2581.1,2.9918]
[1724174519917,7.74832,2581.2,2581.1,2.9918]
[1724174520260,10.74832,2581.2,2581.1,2.9918]
[1724174521402,10.74832,2581.2,2581.1,2.4418]
[1724174521910,10.74832,2581.2,2581.1,2.9918]
[1724174521911,6.87416,2581.2,2581.1,2.9918]
[1724174525102,7.05233304,2581.2,2581.1,2.9918]
[1724174527810,3.17817304,2581.2,2581.1,2.9918]
[1724174527994,0.17817304,2581.2,2581.1,3.67958]
[1724174528193,3.17817304,2581.2,2581.1,3.67958]
[1724174528501,3.17809108,2581.2,2581.1,3.67958]
[1724174528715,4.05225108,2581.2,2581.1,2.4418]
[1724174528864,10.92641108,2581.2,2581.1,2.4418]
[1724174530420,11.45948706,2581.2,2581.1,2.4418]
[1724174530565,3.87476,2580.8,2580.6,7.41]
[1724174530760,3.71116706,2581.2,2580.3,0.3886]
[1724174530761,0.05768516,2580.9,2580.3,0.3886]
[1724174530997,7.75032,2580.6,2580.4,2.3836]
[1724174531260,0.17781315,2580.5,2580.4,2.7722]
[1724174532272,0.17715867,2580.5,2580.4,2.7722]
[1724174532788,3.0,2580.8,2580.4,2.7722]
[1724174533108,3.0,2580.8,2580.6,2.3591]
[1724174533288,3.0,2580.8,2580.6,2.7477]
[1724174533460,3.0,2581.0,2580.8,2.3591]
[1724174533862,6.87447,2581.0,2580.9,0.55]
[1724174534975,10.74894,2581.0,2580.9,0.55]
[1724174536388,3.87534,2580.5,2580.2,0.3886]
[1724174536590,3.87534,2580.5,2580.3,2.4927]
[1724174536591,3.87531,2580.5,2580.3,2.4927]
[1724174537409,3.87509,2580.6,2580.3,2.4927]
[1724174537603,3.87509,2580.6,2580.3,2.8813]
[1724174538320,3.87509,2580.6,2580.4,0.55]
[1724174538522,3.87509,2580.6,2580.5,2.3108]
[1724174538722,3.0,2580.6,2580.5,2.8608]
[1724174538893,3.0,2580.6,2580.5,3.62934]
[1724174539097,3.0,2580.7,2580.6,2.3108]
[1724174539294,3.0,2580.7,2580.6,3.2494]
[1724174539295,3.17726853,2580.7,2580.6,3.2494]
[1724174539615,3.17726853,2580.7,2580.6,2.8608]
[1724174540338,3.17726853,2580.7,2580.6,3.2494]
[1724174540929,0.17726853,2580.7,2580.6,3.612334]
[1724174541131,3.87403,2581.3,2580.7,2.732]
[1724174541293,3.87403,2581.3,2580.6,0.912934]
[1724174541294,0.17738263,2581.2,2581.0,2.7535]
[1724174541512,3.87379,2581.5,2581.0,2.7535]
[1724174541513,3.87372,2581.5,2581.0,2.7535]
[1724174541851,0.17792383,2581.4,2581.2,2.7535]
[1724174542053,0.17792383,2581.4,2581.3,5.58085]
[1724174542356,3.87357,2581.6,2581.4,2.3649]
[1724174542538,3.87336,2581.8,2581.4,2.3649]
[1724174542700,3.87336,2581.8,2581.2,19.47]
[1724174542701,3.87336,2581.8,2581.6,2.3649]
[1724174542901,7.74676,2581.8,2581.7,0.55]
[1724174543630,10.74676,2581.8,2581.7,0.55]
[1724174544459,7.74682,2581.7,2581.6,2.3649]
[1724174544662,10.74682,2581.7,2581.6,2.3649]
[1724174544816,10.69682,2581.7,2581.6,2.3649]
[1724174545209,7.74775,2581.4,2581.3,2.3649]
[1724174545464,10.74775,2581.4,2581.3,2.3649]
[1724174546757,10.74775,2581.4,2581.3,2.9149]
[1724174548283,3.0,2581.4,2581.3,2.9149]
[1724174548484,6.87386,2581.4,2581.3,2.9149]
[1724174550446,10.74772,2581.4,2581.3,2.9149]
[1724174551587,10.74772,2581.4,2581.3,2.3649]
[1724174551795,6.87386,2581.4,2581.3,2.3649]
[1724174552550,10.74772,2581.4,2581.3,2.3649]
[1724174554804,6.87386,2581.4,2581.3,2.3649]
[1724174554998,7.05172285,2581.4,2581.3,2.9149]
[1724174555409,10.92558285,2581.4,2581.3,2.9149]
[1724174555910,10.92558285,2581.4,2581.3,2.3649]
[1724174556668,7.05172285,2581.4,2581.3,2.3649]
[1724174556864,7.05172285,2581.4,2581.3,2.9149]
[1724174559637,3.17786285,2581.4,2581.3,2.9149]
[1724174560239,7.05172285,2581.4,2581.3,2.9149]
[1724174561122,10.92558285,2581.4,2581.3,2.9149]
[1724174562347,3.87459,2581.0,2580.9,2.2742]
[1724174562493,10.92673923,2581.0,2580.9,2.2742]
[1724174564133,7.05214923,2581.0,2580.9,2.2742]
[1724174564305,7.05214923,2581.0,2580.9,2.8242]
[1724174566107,7.05214923,2581.0,2580.9,2.2742]
[1724174566108,10.92670923,2581.0,2580.9,2.2742]
[1724174568440,3.87502,2580.7,2580.1,0.3886]
[1724174568623,3.87502,2580.7,2580.5,0.3886]
[1724174568826,3.87502,2580.7,2580.6,0.55]
[1724174569648,3.87502,2580.7,2580.6,2.9073]
[1724174570013,6.87502,2580.7,2580.6,2.9073]
[1724174570525,10.92741562,2580.7,2580.6,2.9073]
[1724174570942,10.92741562,2580.7,2580.6,2.3573]
[1724174571454,3.87534,2580.5,2580.4,0.3886]
[1724174571762,7.05261102,2580.5,2580.4,0.9386]
[1724174574435,7.05261102,2580.5,2580.4,3.4269]
[1724174576217,3.17727102,2580.5,2580.4,3.4269]
[1724174576573,3.0,2580.5,2580.4,5.71659]
[1724174576714,3.17697227,2580.5,2580.4,5.71659]
[1724174576914,0.17697227,2580.5,2580.4,5.71659]
[1724174577264,3.0,2580.7,2580.5,2.4883]
[1724174577469,3.0,2580.7,2580.6,3.0383]
[1724174577965,6.87491,2580.7,2580.6,3.0383]
[1724174578764,3.0,2580.7,2580.6,3.0383]
[1724174578981,3.87464,2580.9,2580.6,3.0383]
[1724174578982,3.0,2580.8,2580.6,3.0383]
[1724174579524,3.0,2580.8,2580.6,0.89269]
[1724174579724,3.0,2580.9,2580.7,2.4528]
[1724174579951,3.0,2580.9,2580.8,3.0028]
[1724174580177,10.74922,2580.9,2580.8,3.0028]
[1724174581427,10.74922,2580.9,2580.8,2.4528]
[1724174583339,14.62383,2580.9,2580.8,2.4528]
[1724174583547,14.62383,2580.9,2580.6,2.2896]
[1724174583548,3.87476,2580.8,2580.6,2.2896]
[1724174583759,14.68241516,2580.7,2580.6,2.2896]
[1724174584086,14.68241516,2580.7,2580.2,0.3886]
[1724174584087,3.87551,2580.3,2580.2,0.3886]
[1724174584243,3.87551,2580.3,2580.0,0.3886]
[1724174584665,3.87551,2580.3,2580.1,2.6782]
[1724174584866,3.87551,2580.3,2580.2,0.55]
[1724174585261,3.87539,2580.4,2580.2,2.8396]
[1724174585978,3.87611,2579.9,2579.8,2.3611]
[1724174586183,7.75222,2579.9,2579.8,2.3611]
[1724174586670,10.75222,2579.9,2579.8,2.3611]
[1724174587175,6.87611,2579.9,2579.8,2.3611]
[1724174588765,6.87611,2579.9,2579.8,2.9111]
[1724174589645,3.0,2579.9,2579.8,2.9111]
[1724174589848,0.53874528,2580.3,2579.9,2.3929]
[1724174590043,3.87546,2580.4,2579.9,2.3929]
[1724174590044,7.75091,2580.4,2579.9,2.3929]
[1724174590387,3.87545,2580.4,2580.1,2.3628]
[1724174590530,3.87545,2580.4,2580.2,0.55]
[1724174590728,3.87545,2580.4,2580.1,2.3628]
[1724174590957,3.87545,2580.4,2580.3,2.3628]
[1724174591172,3.87545,2580.4,2580.3,2.9128]
[1724174591371,3.87517,2580.6,2580.3,2.9128]
[1724174591583,3.87521,2580.5,2580.4,2.9128]
[1724174592585,6.87521,2580.5,2580.4,2.9128]
[1724174594187,3.0,2580.5,2580.4,2.9128]
[1724174594393,3.0,2580.5,2580.4,3.24294]
[1724174594763,6.87521,2580.5,2580.4,2.9128]
[1724174597121,3.0,2580.5,2580.4,2.9128]
[1724174598888,6.87493,2580.7,2580.4,2.9128]
[1724174599402,3.0,2580.7,2580.4,2.9128]
[1724174599640,3.87455,2581.0,2580.4,2.9128]
[1724174599809,3.87455,2581.0,2580.6,2.4184]
[1724174600135,0.17430848,2580.9,2580.7,2.9684]
[1724174601315,7.04894848,2580.9,2580.7,2.9684]
[1724174602250,3.87476,2580.8,2580.7,2.9684]
[1724174602407,10.92407642,2580.8,2580.7,2.9684]
[1724174603815,7.04931642,2580.8,2580.7,2.9684]
[1724174604016,3.17455642,2580.8,2580.7,2.9684]
[1724174604235,0.17455642,2580.8,2580.7,2.9684]
[1724174604399,3.87448,2581.0,2580.7,2.9684]
[1724174604603,0.17425769,2580.8,2580.7,2.9684]
[1724174604841,3.0,2580.9,2580.7,2.9684]
[1724174605043,0.17425769,2580.8,2580.7,2.9684]
[1724174606239,0.17425769,2580.8,2580.7,3.26524]
[1724174606550,0.17425769,2580.8,2580.7,3.15864]
[1724174606725,0.17425769,2580.8,2580.7,22.62864]
[1724174606923,3.87388,2581.4,2580.9,2.7004]
[1724174607113,8.73004,2582.0,2580.7,20.31684]
[1724174607114,3.87372,2581.5,2581.1,2.3118]
[1724174607309,3.87384,2581.5,2581.2,0.55]
[1724174607513,5.39574528,2582.0,2581.3,2.3118]
[1724174607514,3.87386,2581.4,2581.3,2.3118]
[1724174607709,3.87386,2581.4,2581.3,2.8618]
[1724174608557,6.87386,2581.4,2581.3,2.8618]
[1724174611066,3.0,2581.4,2581.3,2.8618]
[1724174611270,3.87357,2581.6,2581.4,2.3964]
[1724174611426,3.87363,2581.6,2581.5,2.9464]
[1724174611963,3.87324,2581.9,2581.5,2.9464]
[1724174612126,3.87324,2581.9,2581.6,2.3882]
[1724174612334,3.87324,2581.9,2581.5,2.820258]
[1724174612335,7.74646,2581.9,2581.8,2.3882]
[1724174612519,7.74646,2581.9,2581.8,2.9382]
[1724174613061,10.74646,2581.9,2581.8,2.9382]
[1724174613264,6.87322,2581.9,2581.8,2.9382]
[1724174615034,7.04828844,2581.9,2581.8,2.9382]
[1724174615358,7.04828844,2581.9,2581.8,0.84382]
[1724174615359,0.17506844,2581.9,2581.8,0.84382]
[1724174615529,0.17506844,2581.9,2581.8,3.23202]
[1724174615862,3.87275,2582.2,2581.9,2.2539]
[1724174616057,3.87275,2582.2,2582.0,0.55]
[1724174616247,3.87275,2582.2,2582.1,2.4934]
[1724174616448,3.87275,2582.2,2582.1,3.0434]
[1724174616647,10.7455,2582.2,2582.1,3.0434]
[1724174620472,6.87275,2582.2,2582.1,3.0434]
[1724174621118,3.0,2582.2,2582.1,3.0434]
[1724174621544,6.87251,2582.3,2582.1,3.0434]
[1724174621746,6.87251,2582.3,2582.2,0.55]
[1724174623639,3.0,2582.3,2582.2,2.955]
[1724174623861,3.0,2582.3,2582.2,3.2505]
[1724174624995,3.0,2582.5,2582.2,3.2505]
[1724174625171,3.0,2582.5,2582.3,2.405]
[1724174625372,3.87192,2582.7,2582.5,2.405]
[1724174625696,3.0,2582.6,2582.5,2.405]
[1724174625896,6.87197,2582.7,2582.5,2.955]
[1724174626040,6.87197,2582.7,2582.6,0.55]
[1724174630173,7.04697286,2582.7,2582.6,0.55]
[1724174631419,7.04697286,2582.7,2582.6,2.9297]
[1724174631585,10.91897286,2582.7,2582.6,2.9297]
[1724174632390,0.17500286,2582.7,2582.6,5.16967]
[1724174632589,0.17500286,2582.7,2582.6,3.3183]
[1724174632805,3.87137,2583.1,2582.7,2.7683]
[1724174633009,3.87137,2583.1,2582.6,0.55]
[1724174633010,3.87137,2583.1,2582.9,2.3797]
[1724174633327,3.88291322,2583.2,2582.9,2.3797]
[1724174633623,3.88291322,2583.2,2583.1,2.3797]
[1724174633824,6.88291322,2583.2,2583.1,2.9297]
[1724174635084,3.01173322,2583.2,2583.1,2.9297]
[1724174635485,0.01173322,2583.2,2583.1,2.9297]
[1724174635688,3.01173322,2583.2,2583.1,2.9297]
[1724174636094,0.01173322,2583.2,2583.1,2.9297]
[1724174636296,3.01173322,2583.2,2583.1,2.9297]
[1724174639745,10.81173838,2583.2,2583.1,2.9297]
[1724174639913,7.74352,2582.9,2582.8,2.4722]
[1724174640122,11.61528,2582.9,2582.8,2.4722]
[1724174640338,14.61528,2582.9,2582.8,2.4722]
[1724174640715,3.87245,2582.4,2582.2,0.3886]
[1724174641021,3.87223,2582.5,2582.2,0.3886]
[1724174641320,3.0,2582.4,2582.1,0.3886]
[1724174641531,3.0,2582.4,2582.3,2.7909]
[1724174642048,6.87236,2582.4,2582.3,2.7909]
[1724174642557,3.0,2582.4,2582.3,2.7909]
[1724174642742,3.0,2582.5,2582.3,2.7909]
[1724174643055,6.87223,2582.5,2582.3,2.7909]
[1724174643349,10.74453,2582.5,2582.3,2.7909]
[1724174643656,6.87223,2582.5,2582.4,0.55]
[1724174643859,3.0,2582.5,2582.4,0.55]
[1724174644154,3.0,2582.6,2582.4,2.9523]
[1724174644742,7.74336,2582.9,2582.4,2.9523]
[1724174644936,0.01173322,2583.2,2582.4,2.9523]
[1724174644937,3.01173322,2583.2,2582.4,2.9523]
[1724174645259,3.87148,2583.0,2582.5,2.4023]
[1724174645470,3.87148,2583.0,2582.6,0.55]
[1724174645471,3.0,2582.9,2582.6,0.55]
[1724174645633,7.04075922,2582.9,2582.7,2.4206]
[1724174645839,7.04075922,2582.9,2582.8,0.55]
[1724174648415,10.91244922,2582.9,2582.8,0.55]
[1724174648617,3.87234,2582.5,2582.3,2.8027]
[1724174648813,7.04143292,2582.4,2582.3,2.4141]
[1724174649871,3.16907292,2582.4,2582.3,2.9641]
[1724174650038,3.16907292,2582.4,2582.3,0.84641]
[1724174650217,3.16907292,2582.4,2582.3,2.9271]
[1724174650424,0.16907292,2582.4,2582.3,2.9271]
[1724174650619,6.87207,2582.6,2582.3,2.9271]
[1724174650894,0.16903333,2582.5,2582.4,0.55]
[1724174652027,4.04124333,2582.5,2582.4,0.55]
[1724174652225,7.04124333,2582.5,2582.4,0.55]
[1724174652466,10.91345333,2582.5,2582.4,0.55]
[1724174652769,10.97113849,2582.5,2582.4,0.55]
[1724174653216,7.04124333,2582.5,2582.4,0.55]
[1724174654629,7.09892849,2582.5,2582.4,0.55]
[1724174655976,7.04124333,2582.5,2582.4,0.55]
[1724174657352,3.16903333,2582.5,2582.4,0.55]
[1724174657551,3.16903333,2582.5,2582.4,0.84271]
[1724174657783,0.16903333,2582.5,2582.4,0.84271]
[1724174658076,3.16903333,2582.5,2582.4,0.55]
[1724174658836,7.04124333,2582.5,2582.4,0.55]
[1724174660152,3.16903333,2582.5,2582.4,0.55]
[1724174660561,3.16903333,2582.5,2582.4,2.9853]
[1724174661944,0.16903333,2582.5,2582.4,2.9853]
[1724174662279,3.0,2582.9,2582.5,2.3157]
[1724174662280,3.0,2582.7,2582.5,2.3157]
[1724174662582,6.87174,2582.9,2582.6,2.8657]
[1724174662749,3.87177,2582.8,2582.6,2.3157]
[1724174662946,3.0,2582.7,2582.6,2.3157]
[1724174663277,3.0,2582.7,2582.6,2.8657]
[1724174663649,6.87191,2582.7,2582.6,2.8657]
[1724174664350,3.0,2582.7,2582.6,2.8657]
[1724174664662,3.87178,2582.8,2582.6,2.8657]
[1724174664973,3.0,2582.7,2582.6,2.8657]
[1724174665429,6.87191,2582.7,2582.6,2.8657]
[1724174665837,3.0,2582.7,2582.6,2.8657]
[1724174666132,3.0,2582.7,2582.6,3.15227]
[1724174669557,0.01173322,2583.2,2582.7,2.4721]
[1724174669763,0.01173322,2583.2,2582.9,2.4721]
[1724174669764,3.88302322,2583.2,2582.9,2.4721]
[1724174669963,3.87137,2583.1,2582.9,2.4721]
[1724174670204,7.7427,2583.1,2583.0,0.55]
[1724174671067,10.7427,2583.1,2583.0,0.55]
[1724174672905,6.82131,2583.1,2583.0,0.55]
[1724174673112,6.82131,2583.1,2583.0,2.9417]
[1724174673702,3.0,2583.1,2583.0,2.9417]
[1724174673899,6.88293322,2583.2,2583.0,2.9417]
[1724174674613,6.88291322,2583.2,2583.0,2.9417]
[1724174675174,0.16927874,2583.1,2583.0,2.9417]
[1724174676211,4.04058874,2583.1,2583.0,2.9417]
[1724174676382,7.04058874,2583.1,2583.0,2.9417]
[1724174676728,3.16927874,2583.1,2583.0,3.23587]
[1724174677038,7.04058874,2583.1,2583.0,3.23587]
[1724174677229,7.04058874,2583.1,2583.0,2.9417]
[1724174677429,10.91189874,2583.1,2583.0,2.9417]
[1724174677778,10.91189874,2583.1,2582.8,2.3917]
[1724174677779,7.74322,2582.9,2582.8,2.3917]
[1724174678232,7.91281995,2582.9,2582.8,2.3917]
[1724174678381,10.91281995,2582.9,2582.8,2.3917]
[1724174679131,10.91281995,2582.9,2582.8,2.9417]
[1724174690885,3.16959995,2582.9,2582.8,2.9417]
[1724174691191,7.04120995,2582.9,2582.8,2.9417]
[1724174691391,10.91281995,2582.9,2582.8,2.9417]
[1724174694182,14.78442995,2582.9,2582.8,2.9417]
[1724174694387,14.78442995,2582.9,2582.8,0.55]
[1724174694623,14.78442995,2582.9,2582.7,0.55]
[1724174694624,7.74352,2582.8,2582.7,0.55]
[1724174694806,10.74352,2582.8,2582.7,0.55]
[1724174695080,10.91294317,2582.8,2582.7,0.55]
[1724174699055,10.91294317,2582.8,2582.7,2.9167]
[1724174699649,10.91294317,2582.8,2582.7,3.20837]
[1724174700187,10.91294317,2582.8,2582.7,2.9167]
[1724174700599,7.04118317,2582.8,2582.7,2.9167]
[1724174700792,3.16942317,2582.8,2582.7,2.9167]
[1724174701161,0.16942317,2582.8,2582.7,3.3053]
[1724174701477,0.57474526,2582.8,2582.7,3.3053]
[1724174701646,0.57474526,2582.8,2582.7,3.63583]
[1724174711151,0.40532209,2582.8,2582.7,3.63583]
[1724174711608,0.01173322,2583.2,2582.9,0.3886]
[1724174711807,0.01173322,2583.2,2583.1,2.2514]
[1724174712006,0.01173322,2583.2,2583.1,2.8014]
[1724174712258,0.01173322,2583.2,2583.1,3.18314061]
[1724174712770,0.01173322,2583.2,2583.1,3.26055037]
[1724174713235,0.01173322,2583.2,2583.1,3.57174061]
[1724174720125,0.18113281,2583.2,2583.1,3.57174061]
[1724174721746,0.01173322,2583.2,2583.1,3.57174061]
[1724174722462,0.01173322,2583.2,2583.1,5.59674061]
[1724174722786,0.1812092,2583.2,2583.1,5.59674061]